bitfinex/quotes_SOLUSD_20240824
["timestamp","ask_amount","ask_price","bid_price","bid_amount"]
[1724507655565,7.27980708,158.16,158.15,1.26438031]
[1724507656286,7.27980708,158.16,158.14,1.26440228]
[1724507656481,3.20544999,158.17,158.14,1.26440228]
[1724507656681,7.27981061,158.16,158.12,20.0]
[1724507656889,3.20544999,158.17,158.12,20.0]
[1724507657065,7.27986173,158.16,158.12,20.0]
[1724507657265,16.15495033,158.18,158.12,20.0]
[1724507657479,7.27986473,158.17,158.12,20.0]
[1724507657667,7.27986473,158.16,158.12,20.0]
[1724507657865,4.07916249,158.15,158.07,16.381]
[1724507658090,16.15605033,158.16,158.07,16.381]
[1724507658586,7.28105267,158.15,158.07,16.381]
[1724507658877,16.15605033,158.16,158.07,16.381]
[1724507659086,4.07936107,158.15,158.07,16.381]
[1724507659263,3.20174072,158.15,158.08,20.0]
[1724507659466,16.15605033,158.16,158.09,46.26465451]
[1724507659674,7.28109494,158.15,158.09,46.26465451]
[1724507659866,16.15605033,158.16,158.09,46.26465451]
[1724507660085,7.28096455,158.15,158.09,46.26465451]
[1724507660287,16.15605033,158.16,158.09,46.26465451]
[1724507660472,7.28096359,158.15,158.09,46.26465451]
[1724507660673,16.15605033,158.16,158.09,46.26465451]
[1724507660861,7.28096665,158.15,158.09,46.26465451]
[1724507661063,16.15605033,158.16,158.09,46.26465451]
[1724507661380,7.28083042,158.15,158.09,46.26465451]
[1724507661580,16.15605033,158.16,158.09,46.26465451]
[1724507661879,7.2808448,158.15,158.09,46.26465451]
[1724507662266,16.15605033,158.16,158.09,46.26465451]
[1724507662467,7.28084786,158.15,158.09,46.26465451]
[1724507662787,9.83305033,158.16,158.09,46.26465451]
[1724507662974,7.28071586,158.15,158.09,46.26465451]
[1724507663174,9.83305033,158.16,158.09,46.26465451]
[1724507663367,7.28071844,158.15,158.09,46.26465451]
[1724507663568,9.83305033,158.16,158.09,46.26465451]
[1724507663769,7.2808448,158.15,158.09,46.26465451]
[1724507663973,9.83305033,158.16,158.09,46.26465451]
[1724507664275,7.28081086,158.15,158.09,46.26465451]
[1724507664584,6.3224,158.17,158.09,46.26465451]
[1724507664762,7.28084725,158.16,158.09,46.26465451]
[1724507664967,7.28084725,158.15,158.09,46.26465451]
[1724507665178,6.3224,158.17,158.09,46.26465451]
[1724507665378,7.28084786,158.16,158.09,46.26465451]
[1724507665581,7.28084786,158.15,158.09,46.26465451]
[1724507665780,6.3224,158.17,158.09,46.26465451]
[1724507665985,7.28083089,158.16,158.09,46.26465451]
[1724507666180,7.28083089,158.15,158.09,46.26465451]
[1724507666373,6.3224,158.17,158.09,46.26465451]
[1724507666575,7.2809542,158.16,158.09,46.26465451]
[1724507666775,7.2809542,158.15,158.09,46.26465451]
[1724507666968,6.3224,158.17,158.09,46.26465451]
[1724507667168,7.28096031,158.16,158.09,46.26465451]
[1724507667383,7.28096031,158.15,158.09,45.0]
[1724507667576,6.3224,158.17,158.09,45.0]
[1724507667777,7.28082477,158.16,158.09,45.0]
[1724507667971,7.28082477,158.15,158.09,45.0]
[1724507668181,9.83305033,158.16,158.09,45.0]
[1724507668485,7.28144096,158.15,158.09,45.0]
[1724507668678,9.83305033,158.16,158.09,45.0]
[1724507669083,4.07939633,158.15,158.09,45.0]
[1724507669291,9.83305033,158.16,158.09,45.0]
[1724507669789,3.20202921,158.15,158.09,45.0]
[1724507670089,9.83305033,158.16,158.09,45.0]
[1724507670279,7.28145793,158.15,158.09,45.0]
[1724507670469,9.83305033,158.16,158.09,45.0]
[1724507670791,7.28132802,158.15,158.09,45.0]
[1724507670992,9.83305033,158.16,158.09,45.0]
[1724507671176,7.28132802,158.15,158.09,45.0]
[1724507671378,9.83305033,158.16,158.09,45.0]
[1724507671694,7.2813306,158.15,158.09,45.0]
[1724507671897,9.83305033,158.16,158.09,45.0]
[1724507672083,7.2813306,158.15,158.09,45.0]
[1724507672275,9.83305033,158.16,158.09,45.0]
[1724507672477,7.28132802,158.15,158.09,45.0]
[1724507672686,9.83305033,158.16,158.09,45.0]
[1724507672889,7.28133107,158.15,158.09,45.0]
[1724507673085,9.83305033,158.16,158.09,45.0]
[1724507673289,7.28132802,158.15,158.09,45.0]
[1724507673601,9.83305033,158.16,158.09,45.0]
[1724507673893,7.2813306,158.15,158.09,45.0]
[1724507674088,9.83305033,158.16,158.1,1.26460853]
[1724507674291,7.28132496,158.15,158.11,1.26460506]
[1724507674593,9.83305033,158.16,158.11,1.26460506]
[1724507674783,7.28132449,158.15,158.11,1.26460506]
[1724507675091,9.83305033,158.16,158.11,1.26460506]
[1724507675393,7.28132191,158.15,158.11,1.26460506]
[1724507675592,4.07939538,158.15,158.11,1.26460506]
[1724507675790,9.83305033,158.16,158.11,1.26460506]
[1724507675973,7.28132449,158.15,158.11,1.26460506]
[1724507676298,16.15495033,158.18,158.12,1.26459929]
[1724507676476,7.28131082,158.17,158.12,1.26459929]
[1724507676677,7.28131082,158.16,158.12,1.26459929]
[1724507676977,7.28131082,158.15,158.12,1.26459929]
[1724507677300,16.15495033,158.18,158.1,1.26453299]
[1724507677501,7.28131999,158.17,158.11,1.26451946]
[1724507677687,7.28131999,158.16,158.11,1.26451946]
[1724507677997,4.07939508,158.15,158.11,1.26451946]
[1724507678306,16.15495033,158.18,158.11,1.26451946]
[1724507678490,7.2811781,158.17,158.11,1.26451946]
[1724507678690,7.2811781,158.16,158.11,1.26451946]
[1724507678886,4.07937296,158.15,158.11,1.26451946]
[1724507679204,16.15495033,158.18,158.11,1.26451946]
[1724507679500,7.28104867,158.17,158.11,1.26451946]
[1724507679697,7.28104867,158.16,158.11,1.26451946]
[1724507679903,4.07935279,158.15,158.11,1.26451946]
[1724507680194,16.15495033,158.18,158.11,1.26451946]
[1724507680401,7.2811781,158.17,158.11,1.26451946]
[1724507680580,7.2811781,158.16,158.11,1.26451946]
[1724507680774,4.07937296,158.15,158.11,1.26451946]
[1724507680974,16.15495033,158.18,158.11,1.26451946]
[1724507681180,7.28118727,158.17,158.11,1.26451946]
[1724507681386,7.28118727,158.16,158.11,1.26451946]
[1724507681585,4.07937439,158.15,158.11,1.26451946]
[1724507681796,16.15495033,158.18,158.11,1.26451946]
[1724507681993,7.28118538,158.17,158.11,1.26451946]
[1724507682202,7.28117764,158.16,158.11,1.26451946]
[1724507682379,4.07937289,158.16,158.11,1.26451946]
[1724507682781,4.07937289,158.15,158.11,1.26451946]
[1724507682987,6.3223,158.17,158.11,1.26451946]
[1724507683188,7.28117969,158.16,158.11,1.26451946]
[1724507683481,4.07937321,158.15,158.11,1.26451946]
[1724507683681,6.3223,158.17,158.11,1.26451946]
[1724507683896,7.28117969,158.16,158.11,1.26451946]
[1724507684096,4.07937321,158.15,158.11,1.26451946]
[1724507684283,6.3223,158.17,158.11,1.26451946]
[1724507684583,7.28120278,158.16,158.11,1.26451946]
[1724507684905,4.07937681,158.15,158.11,1.26451946]
[1724507685093,6.3223,158.17,158.11,1.26451946]
[1724507685494,4.07937321,158.16,158.11,1.26451946]
[1724507685702,7.28117969,158.15,158.11,1.26451946]
[1724507685875,6.3223,158.17,158.11,1.26451946]
[1724507686079,7.28117969,158.16,158.11,1.26451946]
[1724507686275,7.28117969,158.15,158.11,1.26451946]
[1724507686499,6.3223,158.17,158.11,1.26451946]
[1724507686815,7.28118065,158.16,158.11,1.26451946]
[1724507686987,7.28118065,158.15,158.11,1.26451946]
[1724507687188,6.3223,158.17,158.11,1.26451946]
[1724507687484,7.28117969,158.16,158.11,1.26451946]
[1724507687684,4.07937321,158.15,158.11,1.26451946]
[1724507687984,6.3223,158.17,158.11,1.26451946]
[1724507688183,7.28100483,158.16,158.11,1.26451946]
[1724507688389,4.07934596,158.15,158.11,1.26451946]
[1724507688587,6.3223,158.17,158.11,1.26451946]
[1724507688779,3.20176813,158.16,158.11,1.26451946]
[1724507688998,3.20176813,158.15,158.11,1.26451946]
[1724507689203,6.3223,158.17,158.11,1.26451946]
[1724507689517,7.28142793,158.16,158.11,1.26451946]
[1724507689689,7.28142793,158.15,158.11,1.26451946]
[1724507689881,6.3223,158.17,158.11,1.26451946]
[1724507690100,3.20192109,158.16,158.11,1.26451946]
[1724507690299,3.20192109,158.15,158.08,20.0]
[1724507690585,9.83305033,158.14,158.08,20.0]
[1724507696593,9.83305033,158.14,158.09,1.26488046]
[1724507696802,9.83305033,158.14,158.08,20.0]
[1724507698312,9.83305033,158.14,158.07,16.381]
[1724507698913,6.3234,158.15,158.07,16.381]
[1724507699115,3.20311041,158.14,158.08,1.39033579]
[1724507699410,15.1745,158.17,158.08,45.12549]
[1724507699622,3.20292633,158.16,158.08,45.12549]
[1724507699784,3.20292633,158.15,158.08,45.12549]
[1724507699990,3.20292633,158.14,158.08,45.12549]
[1724507700198,21.4971,158.17,158.08,45.12549]
[1724507700400,3.20278205,158.16,158.09,1.26469087]
[1724507700600,21.4971,158.17,158.09,1.26469087]
[1724507700802,3.20277431,158.16,158.08,45.12549]
[1724507701094,3.20277431,158.15,158.08,45.12549]
[1724507701412,3.20277947,158.14,158.08,54.83305033]
[1724507701712,6.40555894,158.14,158.07,16.381]
[1724507701892,3.20277947,158.14,158.08,20.0]
[1724507702093,8.94546554,158.13,158.08,20.0]
[1724507702315,8.94546554,158.13,158.09,1.26484816]
[1724507702619,5.74257423,158.12,158.09,1.26484816]
[1724507702918,3.20277947,158.14,158.08,20.0]
[1724507703110,5.74257966,158.13,158.08,20.0]
[1724507703310,5.74257966,158.12,158.08,20.0]
[1724507703507,3.20277947,158.14,158.09,1.26485228]
[1724507703819,5.74229061,158.13,158.09,1.26485228]
[1724507704120,5.74229061,158.12,158.09,1.26485228]
[1724507704322,3.20277947,158.14,158.09,1.26485228]
[1724507704505,5.74228956,158.13,158.09,1.26485228]
[1724507704818,5.74229394,158.12,158.09,46.26485228]
[1724507704997,3.20277947,158.14,158.09,46.26485228]
[1724507705198,5.74189079,158.13,158.09,46.26485228]
[1724507705393,5.74189079,158.12,158.09,46.26485228]
[1724507705594,3.20277947,158.14,158.09,46.26485228]
[1724507705828,5.74189079,158.13,158.09,46.26485228]
[1724507706028,5.74189079,158.12,158.09,46.26485228]
[1724507706203,3.20277947,158.14,158.09,46.26485228]
[1724507706403,5.74217421,158.13,158.09,46.26485228]
[1724507706621,5.74217421,158.12,158.09,46.26485228]
[1724507706797,3.20277947,158.14,158.09,46.26485228]
[1724507707097,5.74216952,158.13,158.09,46.26485228]
[1724507707300,5.74216952,158.12,158.09,46.26485228]
[1724507707499,3.20277947,158.14,158.09,46.26485228]
[1724507707699,5.74188948,158.13,158.09,46.26485228]
[1724507708013,5.74188948,158.12,158.09,45.0]
[1724507708222,6.3224,158.17,158.09,45.0]
[1724507708513,8.85687464,158.16,158.09,45.0]
[1724507708720,8.85687464,158.15,158.09,45.0]
[1724507708922,8.85687464,158.14,158.1,1.26471778]
[1724507709220,5.69176413,158.13,158.1,1.26471778]
[1724507709428,5.69176413,158.12,158.1,1.26471778]
[1724507709610,6.3224,158.17,158.1,1.26471778]
[1724507709930,8.85685723,158.16,158.1,1.26471778]
[1724507710235,8.85685723,158.15,158.1,1.26471778]
[1724507710412,8.85685723,158.14,158.1,1.26471778]
[1724507710600,5.69174857,158.13,158.1,1.26471778]
[1724507710925,5.69174857,158.12,158.1,1.26471778]
[1724507711133,6.3224,158.17,158.1,1.26471778]
[1724507711308,8.85687472,158.16,158.1,1.26471778]
[1724507711507,6.3224,158.17,158.1,1.26471778]
[1724507711508,8.85687472,158.15,158.1,1.26471778]
[1724507711720,8.85687472,158.14,158.1,1.26471778]
[1724507711914,6.3224,158.17,158.1,1.26471778]
[1724507711915,5.6917642,158.13,158.1,1.26471778]
[1724507712116,5.6917642,158.12,158.1,1.26471778]
[1724507712322,6.3224,158.17,158.1,1.26471778]
[1724507712604,8.85687431,158.16,158.09,45.0]
[1724507712928,8.85687431,158.15,158.11,15.3759]
[1724507713110,8.85687431,158.14,158.12,1.26454199]
[1724507713300,5.69176383,158.13,158.12,1.26454199]
[1724507716431,5.69176383,158.13,158.11,15.3759]
[1724507716619,9.83305033,158.17,158.09,45.0]
[1724507716828,9.83305033,158.17,158.07,15.3759]
[1724507716829,8.85593119,158.16,158.1,20.0]
[1724507717006,8.85593119,158.15,158.1,20.0]
[1724507717209,8.85593119,158.14,158.1,20.0]
[1724507717430,5.69092105,158.13,158.09,20.0]
[1724507717731,16.15545033,158.17,158.09,20.0]
[1724507717906,8.85596336,158.16,158.09,20.0]
[1724507718234,8.85596709,158.15,158.09,20.0]
[1724507718436,5.69095313,158.14,158.09,20.0]
[1724507718613,9.83305033,158.15,158.09,20.0]
[1724507718943,5.69081966,158.14,158.09,20.0]
[1724507719108,9.83305033,158.15,158.09,20.0]
[1724507719314,5.69081862,158.14,158.09,20.0]
[1724507719651,9.83305033,158.15,158.09,20.0]
[1724507719835,5.69081528,158.14,158.09,20.0]
[1724507720036,9.83305033,158.15,158.1,1.26471168]
[1724507720237,5.69081757,158.14,158.1,1.26471168]
[1724507720540,9.83305033,158.15,158.1,1.26471168]
[1724507720741,5.69066972,158.14,158.1,1.26471168]
[1724507720922,9.83305033,158.15,158.1,1.26471168]
[1724507721114,5.69067306,158.14,158.1,1.26471168]
[1724507721316,9.83305033,158.15,158.1,1.26471168]
[1724507721516,5.69066972,158.14,158.1,1.26471168]
[1724507721717,9.83305033,158.15,158.1,1.26471168]
[1724507721931,5.69081195,158.14,158.1,1.26471168]
[1724507722133,9.83305033,158.15,158.1,1.26471168]
[1724507722323,5.6908109,158.14,158.1,1.26471168]
[1724507722624,9.83305033,158.15,158.1,1.26471168]
[1724507722835,5.6908109,158.14,158.1,1.26471168]
[1724507723017,9.83305033,158.15,158.1,1.26471168]
[1724507723220,5.69081528,158.14,158.1,1.26471168]
[1724507723418,9.83305033,158.15,158.11,1.26471385]
[1724507723713,5.69079572,158.14,158.11,1.26471385]
[1724507723935,16.15545033,158.17,158.11,1.26471385]
[1724507724256,8.85562985,158.16,158.11,1.26471385]
[1724507724420,8.85562985,158.15,158.11,1.26471385]
[1724507724751,16.15545033,158.17,158.09,20.0]
[1724507724752,16.15545033,158.17,158.1,1.26469069]
[1724507725042,16.15545033,158.17,158.11,1.2646942]
[1724507725043,12.02079671,158.16,158.11,1.2646942]
[1724507725238,5.69080652,158.14,158.11,1.2646942]
[1724507725932,5.69080652,158.14,158.1,1.26470449]
[1724507726138,5.69080652,158.14,158.12,1.26470449]
[1724507727046,5.69080652,158.14,158.11,1.26460495]
[1724507727349,5.69080652,158.14,158.1,45.0]
[1724507727943,16.28054033,158.18,158.1,45.0]
[1724507728260,6.3226,158.17,158.1,45.0]
[1724507728464,15.17839674,158.17,158.1,45.0]
[1724507728626,8.85579674,158.16,158.1,45.0]
[1724507728825,8.85579674,158.15,158.1,45.0]
[1724507729038,5.6908009,158.14,158.1,45.0]
[1724507729235,6.3226,158.17,158.1,45.0]
[1724507729429,8.85581283,158.16,158.1,45.0]
[1724507729657,8.85581283,158.15,158.11,1.26464204]
[1724507729951,6.3226,158.17,158.1,45.0]
[1724507729952,5.69081528,158.14,158.1,45.0]
[1724507730137,6.3226,158.17,158.1,45.0]
[1724507730337,8.85563475,158.16,158.1,45.0]
[1724507730541,8.85563475,158.15,158.11,1.26464198]
[1724507730750,5.69065614,158.14,158.11,1.26464198]
[1724507730957,9.83305033,158.18,158.12,1.26465321]
[1724507731261,8.85564221,158.17,158.12,1.26465321]
[1724507731458,8.85564221,158.16,158.1,45.0]
[1724507731639,8.85565919,158.15,158.1,45.0]
[1724507731948,5.69067798,158.14,158.1,45.0]
[1724507732122,9.83305033,158.19,158.11,21.26456]
[1724507732328,8.85564476,158.18,158.11,21.26456]
[1724507732660,8.85564476,158.17,158.12,16.3628]
[1724507732868,8.85564476,158.16,158.13,1.26446813]
[1724507733033,5.69066509,158.15,158.13,1.26446813]
[1724507733229,5.69066509,158.14,158.13,1.26446813]
[1724507734065,5.69066509,158.14,158.12,16.3628]
[1724507734355,9.83305033,158.19,158.12,16.3628]
[1724507734542,8.85547042,158.18,158.12,16.3628]
[1724507734728,8.85547042,158.17,158.12,16.3628]
[1724507734927,8.85546039,158.16,158.12,16.3628]
[1724507735158,5.69050033,158.15,158.12,16.3628]
[1724507735356,9.83305033,158.19,158.12,16.3628]
[1724507735357,5.69050033,158.14,158.12,16.3628]
[1724507735542,9.83305033,158.19,158.12,16.3628]
[1724507735851,8.85547042,158.18,158.12,16.3628]
[1724507736053,5.69050929,158.17,158.12,16.3628]
[1724507736259,5.69050033,158.16,158.12,16.3628]
[1724507736558,5.69050033,158.15,158.12,16.3628]
[1724507736749,16.15455033,158.19,158.12,16.3628]
[1724507737055,5.69049366,158.18,158.12,16.3628]
[1724507737244,5.69049366,158.17,158.12,16.3628]
[1724507737561,5.69049366,158.16,158.12,16.3628]
[1724507737756,16.15455033,158.19,158.12,16.3628]
[1724507737757,5.69049366,158.15,158.12,16.3628]
[1724507737938,16.15455033,158.19,158.12,16.3628]
[1724507738145,8.8555094,158.18,158.12,16.3628]
[1724507738346,8.8555094,158.17,158.12,16.3628]
[1724507738545,8.8555094,158.16,158.12,16.3628]
[1724507738730,16.15455033,158.19,158.12,16.3628]
[1724507738930,8.85562985,158.18,158.12,16.3628]
[1724507739159,8.85562985,158.17,158.12,16.3628]
[1724507739450,8.85562985,158.16,158.12,16.3628]
[1724507739663,8.85562985,158.15,158.12,16.3628]
[1724507739864,5.69065176,158.14,158.12,16.3628]
[1724507740039,5.69065176,158.13,158.12,16.3628]
[1724507741041,16.15465033,158.19,158.12,16.3628]
[1724507741252,8.85546184,158.18,158.12,16.3628]
[1724507741458,8.85546184,158.17,158.12,16.3628]
[1724507741760,5.69050163,158.16,158.12,16.3628]
[1724507741949,8.85579948,158.16,158.12,16.3628]
[1724507742144,8.85579948,158.15,158.12,16.3628]
[1724507742360,5.69080335,158.14,158.12,16.3628]
[1724507742654,5.69080335,158.13,158.12,16.3628]
[1724507748747,16.15465033,158.19,158.12,16.3628]
[1724507749148,8.85562005,158.18,158.12,16.3628]
[1724507749357,8.85562005,158.17,158.12,16.3628]
[1724507749560,3.16497704,158.16,158.12,16.3628]
[1724507749759,8.85562005,158.15,158.12,16.3628]
[1724507749944,5.69064301,158.14,158.12,16.3628]
[1724507750139,16.15465033,158.19,158.12,16.3628]
[1724507750368,9.76983376,158.18,158.12,16.3628]
[1724507750567,9.76983376,158.17,158.12,16.3628]
[1724507750876,9.76983376,158.16,158.12,16.3628]
[1724507751079,9.76983376,158.15,158.13,1.26455392]
[1724507751369,5.69051745,158.14,158.13,1.26455392]
[1724507752243,5.69051412,158.14,158.12,16.3628]
[1724507752476,16.15465033,158.19,158.12,16.3628]
[1724507752669,4.07931884,158.18,158.12,16.3628]
[1724507752986,4.07931884,158.17,158.12,16.3628]
[1724507753157,9.76981858,158.16,158.12,16.3628]
[1724507753358,9.76981858,158.15,158.12,16.3628]
[1724507753670,5.69049974,158.14,158.12,16.3628]
[1724507753854,9.83305033,158.17,158.12,16.3628]
[1724507754054,9.76998726,158.16,158.12,16.3628]
[1724507754246,9.76998726,158.15,158.12,16.3628]
[1724507754446,5.69064968,158.14,158.12,16.3628]
[1724507754759,9.83305033,158.17,158.12,16.3628]
[1724507754950,9.76998486,158.16,158.12,16.3628]
[1724507755147,9.76998486,158.15,158.12,16.3628]
[1724507755346,5.69064758,158.14,158.12,16.3628]
[1724507755670,9.83305033,158.17,158.12,16.3628]
[1724507755848,4.07931711,158.16,158.09,6.1079]
[1724507756178,4.07931711,158.15,158.1,20.0]
[1724507756381,9.76982351,158.14,158.11,1.26472385]
[1724507756541,9.83305033,158.17,158.11,1.26472385]
[1724507756745,9.7701838,158.16,158.11,1.26472385]
[1724507756945,9.7701838,158.15,158.11,1.26472385]
[1724507757178,9.7701838,158.14,158.11,1.26472385]
[1724507757472,9.83305033,158.17,158.11,1.26472385]
[1724507757772,9.77000077,158.16,158.11,1.26472385]
[1724507757956,9.77000077,158.15,158.11,1.26472385]
[1724507758163,9.77000077,158.14,158.11,1.26472385]
[1724507758364,9.83305033,158.17,158.11,1.26472385]
[1724507758559,9.77016145,158.16,158.11,1.26472385]
[1724507758747,9.77016145,158.15,158.11,1.26472385]
[1724507758948,9.77016145,158.14,158.11,1.26472385]
[1724507759170,9.83305033,158.17,158.11,1.26472385]
[1724507759347,9.77000011,158.16,158.11,1.26472385]
[1724507759557,5.69066092,158.15,158.11,1.26472385]
[1724507759866,4.07933919,158.14,158.11,1.26472385]
[1724507760066,9.83305033,158.17,158.11,1.26472385]
[1724507760266,4.07933806,158.16,158.11,1.26472385]
[1724507760468,4.07933806,158.15,158.11,1.26472385]
[1724507760670,4.07933806,158.14,158.11,1.26472385]
[1724507760860,9.83305033,158.17,158.11,1.26472385]
[1724507761061,4.07933949,158.16,158.11,1.26472385]
[1724507761271,4.07933949,158.15,158.11,1.26472385]
[1724507761479,4.07933949,158.14,158.11,1.26472385]
[1724507761775,9.83305033,158.17,158.11,1.26472385]
[1724507761977,4.07933949,158.16,158.11,1.26472385]
[1724507762201,4.07931822,158.15,158.11,1.26472385]
[1724507762366,4.07931822,158.15,158.1,20.0]
[1724507762688,7.91244964,158.16,158.11,1.26472327]
[1724507762979,4.07934033,158.14,158.11,1.26472327]
[1724507763174,7.91245032,158.13,158.11,1.26472327]
[1724507763380,7.91245032,158.12,158.1,20.0]
[1724507763592,7.91245032,158.11,158.1,20.0]
[1724507769093,16.15535033,158.17,158.1,20.0]
[1724507769288,16.15535033,158.17,158.11,1.26473365]
[1724507769289,19.90425035,158.16,158.11,1.26473365]
[1724507769492,11.99179606,158.15,158.11,1.26473365]
[1724507769794,11.99179606,158.14,158.11,1.26473365]
[1724507769993,7.91245398,158.13,158.11,1.26473365]
[1724507770172,7.91245398,158.12,158.11,1.26473365]
[1724507770971,7.91245398,158.12,158.11,62.30382365]
[1724507771177,7.91245398,158.12,158.11,81.16458]
[1724507772689,9.83305033,158.21,158.11,81.16458]
[1724507772885,7.91231826,158.2,158.12,9.83305033]
[1724507773186,9.83305033,158.21,158.13,65.12549]
[1724507773187,16.07086356,158.19,158.13,65.12549]
[1724507773378,11.99159091,158.18,158.13,20.0]
[1724507773577,11.99159091,158.17,158.13,20.0]
[1724507773882,11.9916266,158.16,158.12,20.0]
[1724507774193,11.9916266,158.15,158.12,20.0]
[1724507774393,7.91235395,158.14,158.12,20.0]
[1724507774717,7.91235395,158.13,158.12,21.26452418]
[1724507775001,7.91235395,158.13,158.12,20.0]
[1724507776378,9.83305033,158.19,158.12,20.0]
[1724507776588,7.91239735,158.17,158.12,20.0]
[1724507776784,11.99172106,158.16,158.12,20.0]
[1724507777096,11.99172106,158.15,158.12,20.0]
[1724507777405,11.99172106,158.14,158.12,20.0]
[1724507777706,7.9124033,158.13,158.12,20.0]
[1724507778579,7.9124033,158.13,158.12,21.26456359]
[1724507779798,7.91239735,158.17,158.12,21.26456359]
[1724507779984,7.91236979,158.13,158.12,21.26456359]
[1724507781079,7.91236979,158.13,158.12,20.0]
[1724507783194,9.83305033,158.19,158.12,20.0]
[1724507783397,7.91244538,158.13,158.12,20.0]
[1724507784108,7.91244538,158.13,158.08,20.0]
[1724507784400,7.91244538,158.12,158.03,15.6075]
[1724507784586,7.91244538,158.11,158.03,31.30727634]
[1724507784793,7.91244538,158.1,158.03,21.47422601]
[1724507785003,9.83305033,158.13,158.03,21.47422601]
[1724507785004,7.91244538,158.09,158.03,21.47422601]
[1724507785209,9.83305033,158.13,158.03,31.30727634]
[1724507785508,7.91303047,158.12,158.03,31.30727634]
[1724507785677,7.91303047,158.11,158.03,31.30727634]
[1724507785881,7.91303047,158.1,158.03,25.44055033]
[1724507786106,9.83305033,158.13,158.04,50.99221601]
[1724507786290,7.91294941,158.12,158.04,50.99221601]
[1724507786480,7.91294941,158.11,158.04,50.99221601]
[1724507786681,7.91294941,158.1,158.05,1.26499333]
[1724507786894,30.43313146,158.15,158.05,1.26499333]
[1724507786895,30.43313146,158.15,158.07,9.83305033]
[1724507787089,15.15768273,158.14,158.08,1.2648299]
[1724507787284,7.9129354,158.13,158.08,1.2648299]
[1724507787486,7.9129354,158.12,158.08,1.2648299]
[1724507787717,7.9129354,158.11,158.08,1.2648299]
[1724507787900,7.9129354,158.1,158.08,1.2648299]
[1724507788093,30.43313146,158.15,158.08,1.2648299]
[1724507788403,15.15768099,158.14,158.08,1.2648299]
[1724507788601,7.91293448,158.13,158.08,1.2648299]
[1724507788808,7.91293448,158.12,158.08,1.2648299]
[1724507788998,7.91293448,158.11,158.08,21.2648299]
[1724507789191,7.91293448,158.1,158.08,21.2648299]
[1724507789394,22.5201,158.15,158.08,21.2648299]
[1724507789593,15.15761236,158.14,158.08,21.2648299]
[1724507789794,7.91289797,158.13,158.08,21.2648299]
[1724507789994,7.91289797,158.12,158.08,21.2648299]
[1724507790199,7.91289797,158.11,158.08,21.2648299]
[1724507790396,7.91289797,158.1,158.08,21.2648299]
[1724507790595,22.5201,158.15,158.08,21.2648299]
[1724507790913,15.15762391,158.14,158.08,21.2648299]
[1724507791095,7.91289735,158.13,158.08,21.2648299]
[1724507791296,7.91289735,158.12,158.08,21.2648299]
[1724507791496,7.91289735,158.11,158.08,21.2648299]
[1724507791817,7.91289735,158.1,158.08,21.2648299]
[1724507792001,22.5201,158.15,158.08,21.2648299]
[1724507792202,15.15761177,158.14,158.08,21.2648299]
[1724507792500,7.91289766,158.13,158.08,21.2648299]
[1724507792702,7.91289766,158.12,158.08,21.2648299]
[1724507792901,7.91289766,158.11,158.08,21.2648299]
[1724507793120,7.91289766,158.1,158.08,21.2648299]
[1724507793315,22.5201,158.15,158.08,21.2648299]
[1724507793613,11.99250802,158.14,158.08,21.2648299]
[1724507793813,7.91293503,158.13,158.08,21.2648299]
[1724507794117,22.5201,158.15,158.08,21.2648299]
[1724507794118,7.91293503,158.12,158.08,21.2648299]
[1724507794302,7.91293503,158.11,158.08,21.2648299]
[1724507794503,22.5201,158.15,158.08,21.2648299]
[1724507794720,11.99237456,158.14,158.08,21.2648299]
[1724507795014,7.91284486,158.13,158.08,21.2648299]
[1724507795210,7.91284486,158.12,158.08,21.2648299]
[1724507795514,7.91284486,158.11,158.08,20.0]
[1724507795820,7.91284486,158.1,158.06,20.0]
[1724507796114,22.5201,158.15,158.07,45.0]
[1724507796315,21.82556531,158.14,158.08,20.0]
[1724507796511,7.91294167,158.13,158.08,20.0]
[1724507796709,7.91294167,158.12,158.08,20.0]
[1724507796909,7.91294167,158.11,158.08,20.0]
[1724507797089,9.83305033,158.14,158.08,20.0]
[1724507797289,7.91289667,158.13,158.08,20.0]
[1724507797504,7.91289667,158.12,158.08,20.0]
[1724507797707,7.91289667,158.11,158.08,20.0]
[1724507797912,9.83305033,158.14,158.08,20.0]
[1724507798124,7.91289369,158.13,158.08,20.0]
[1724507798298,7.91289369,158.12,158.08,20.0]
[1724507798502,7.91289369,158.11,158.08,20.0]
[1724507798798,22.5201,158.15,158.08,20.0]
[1724507799122,11.99244537,158.14,158.08,20.0]
[1724507799320,7.9128927,158.13,158.08,20.0]